Cogmind - Beta 11 @@@ ROGUE MODE // 2022.03.30 @ 13:31:16 Player: Sn@43 Result: Destroyed by G-47 Trooper with Particle Gun Performance ------------- Evolutions (0) 0 Regions Visited (2) 400 Robots Destroyed (42) 210 Value Destroyed (962) 962 Prototype IDs (0) 0 Alien Tech Used (0) 0 Bonus (0) 0 TOTAL SCORE: 1572 Bonus ------- None Cogmind --------- Core Integrity 0/250 Matter 291/300 Energy 250/250 System Corruption 0% Temperature Cool (12) Movement Rolling (125) Ox3 Location -10/Mines Parts ------- > --- POWER (1) -------- Ion Engine > --- PROPULSION (2) --- Wheel > --- UTILITY (2) ------ Large Storage Unit Visual Processing Unit > --- WEAPON (2) ------- Heavy Assault Rifle Autogun > --- INVENTORY (15) --- Ion Engine Light Treads Large Storage Unit High-capacity Matter Pod (200) Light Armor Plating Heavy Assault Rifle Heavy Assault Rifle Heavy Assault Rifle Autogun Autogun Autogun Peak State ------------ > --- POWER ------------ Light Nuclear Core > --- PROPULSION ------- Wheel Wheel > --- UTILITY ---------- Large Storage Unit Visual Processing Unit > --- WEAPON ----------- Heavy Assault Rifle Autogun > --- INVENTORY -------- Ion Engine Light Treads Wheel Large Storage Unit High-capacity Matter Pod Light Armor Plating Heavy Assault Rifle Heavy Assault Rifle Heavy Assault Rifle Autogun Autogun Autogun [Rating: 13] Favorites ----------- Power Ion Engine Engine Ion Engine Power Core Light Nuclear Core Propulsion Wheel Wheel Wheel Utility Large Storage Unit Storage Large Storage Unit Processor Visual Processing Unit Weapon Medium Laser Energy Gun Medium Laser Ballistic Gun Heavy Assault Rifle Build | -11 -10 -10 ------- Run | Scr Mat Min Slots Evolved . | . . . Power . | . . . Propulsion . | . . . Utility . | . . . Weapon . | . . . Parts Attached 30 | 8 17 5 Power 6 | 1 3 2 Engine 5 | 1 3 1 Core 1 | . . 1 Reactor . | . . . Propulsion 12 | 3 7 2 Treads . | . . . Leg . | . . . Wheel 12 | 3 7 2 Hover . | . . . Flight . | . . . Utility 5 | 2 3 . Device . | . . . Storage 4 | 2 2 . Processor 1 | . 1 . Hackware . | . . . Protection . | . . . Artifact . | . . . Weapon 7 | 2 4 1 Energy Gun 2 | 1 1 . Energy Cannon . | . . . Ballistic Gun 5 | 1 3 1 Ballistic Cannon . | . . . Launcher . | . . . Special Weapon . | . . . Impact Weapon . | . . . Slashing Weapon . | . . . Piercing Weapon . | . . . Special Melee Weapon . | . . . Unidentified Prototypes . | . . . Parts Lost 8 | . 4 4 Power . | . . . Propulsion 6 | . 3 3 Utility . | . . . Weapon 2 | . 1 1 Highest Loss Streak 1 | . 1 1 To Critical Strikes . | . . . Average Slot Usage (%) 98 | . 98 98 Engine 13 | . 14 10 Wheel 26 | . 26 26 Storage 15 | . 15 14 Processor 12 | . 12 14 Energy Gun 10 | . 12 4 Ballistic Gun 17 | . 15 23 Naked Turns . | . . . Heaviest Build 34 | 19 34 31 Greatest Support 26 | 26 26 20 Greatest Overweight (x) 3 | . 2 3 Average Overweight (x) . | . 1 1 Largest Inventory Capacity 15 | 8 15 15 Average Capacity 14 | 7 14 15 Most Carried 15 | 7 15 14 Average Carried 11 | 4 12 12 Final Capacity 15 | 8 15 15 Final Carried 14 | 7 14 11 Class Distribution -------------------- 100% | Mutant Dominant Class ---------------- Mutant | -10/Materials Mutant | -10/Mines Resources | -11 -10 -10 ----------- Run | Scr Mat Min Matter Collected 1138 | 284 599 255 Remotely . | . . . Salvage Created 1286 | 123 803 360 Parts 93 | 4 71 18 Haulers Intercepted . | . . . Recyclers Shooed 1 | 1 . . Parts Field Recycled . | . . . Retrieved Matter . | . . . Parts Self-Destructed . | . . . Prevented . | . . . Kills | -11 -10 -10 ------- Run | Scr Mat Min Combat Hostiles Destroyed 30 | . 22 8 Guns 30 | . 22 8 Classes Destroyed 8 | 2 6 . Worker 3 | . 3 . Builder 2 | . 2 . Tunneler 1 | 1 . . Recycler 1 | 1 . . Operator 3 | . 3 . Watcher 2 | . 2 . Swarmer 9 | . 9 . Grunt 21 | . 13 8 Best Kill Streak 8 | 2 8 2 Combat Bots Only 4 | . 4 2 Max Kills in Single Turn 2 | 1 2 1 Gunslinging 1 | . 1 . Exploded . | . . . Melee . | . . . Uniques/NPCs Destroyed . | . . . Combat | -11 -10 -10 -------- Run | Scr Mat Min Damage Taken 1221 | . 715 506 Core 258 | . 121 137 Absorbed by Shields . | . . . Core Remaining (%) 100 | 100 . . Volleys Fired 117 | 4 78 35 Largest 2 | 2 2 2 Hottest 73 | 70 73 73 Shots Fired 233 | 8 155 70 Gun 233 | 8 155 70 Cannon . | . . . Launcher . | . . . Special . | . . . Kinetic 157 | 4 87 66 Thermal 76 | 4 68 4 Explosive . | . . . Electromagnetic . | . . . Robot Hit Streak 11 | 7 9 11 Robot Miss Streak 7 | . 7 3 Penetration Max . | . . . Secondary Targets 7 | . 6 1 Max Gunslinging Chain 1 | . 1 1 Shots Hit Robots 154 | 7 98 49 Core Hits 68 | 3 45 20 Critical Kills . | . . . Critical Parts Destroyed 1 | . . 1 Critical Strikes 11 | . 9 2 Burn 10 | . 9 1 Destroy 1 | . . 1 Melee Attacks . | . . . Impact . | . . . Slashing . | . . . Piercing . | . . . Sneak Attacks . | . . . Combat Hostiles . | . . . Follow-up Attacks . | . . . Damage Inflicted 2103 | 92 1284 727 Guns 2103 | 92 1284 727 Cannons . | . . . Explosions . | . . . Melee . | . . . Ramming . | . . . Kinetic 1442 | 55 698 689 Thermal 661 | 37 586 38 Explosive . | . . . Electromagnetic . | . . . Impact . | . . . Slashing . | . . . Piercing . | . . . Highest Corruption . | . . . Average Corruption . | . . . Corruption Purged . | . . . Corruption Blocked . | . . . Overload Shots . | . . . Overflow Damage . | . . . Projectiles . | . . . Explosions . | . . . Melee . | . . . Knockbacks . | . . . Impact . | . . . Kinetic . | . . . Secondary . | . . . Self-Inflicted Damage . | . . . Shots . | . . . Rammed . | . . . Targets Rammed . | . . . Kicked . | . . . Crushed . | . . . Highest Temperature 113 | 36 113 81 Average Temperature 30 | 19 34 23 Received Heat Transfer 579 | . 294 285 Siege Activations . | . . . Robots Corrupted . | . . . Combat Hostiles . | . . . Parts Fried . | . . . Impact Corruptions . | . . . Robots Melted . | . . . Combat Hostiles . | . . . Parts Melted 9 | . 8 1 Heat Transferred 2701 | 111 2405 185 Parts Sabotaged . | . . . Parts Stolen . | . . . Parts Stripped . | . . . Power Chain Reactions . | . . . Missiles Intercepted . | . . . Alert | -11 -10 -10 ------- Run | Scr Mat Min Peak Influence 242 | 10 242 195 Initial 6 | . 6 . Average 77 | 5 87 64 Maximum Alert Level 1 | . 1 . Low Security (%) 93 | 100 90 100 Level 1 6 | . 9 . Level 2 . | . . . Level 3 . | . . . Level 4 . | . . . Level 5 . | . . . High Security . | . . . Max Security . | . . . Squads Dispatched 7 | . 7 . Investigation 4 | . 4 . Extermination . | . . . Reinforcement 3 | . 3 . Assault . | . . . Garrison . | . . . Intercept . | . . . Searches Triggered . | . . . Construction Impeded . | . . . Haulers Reinforced . | . . . Active Scanning Responses . | . . . Cargo Convoy Interrupts . | . . . Stealth | -11 -10 -10 --------- Run | Scr Mat Min Distress Signals 6 | . 6 . Communications Jammed . | . . . Distress Signals . | . . . Times Spotted 56 | . 43 13 Peak Tracking Total 6 | . 6 3 Tactical Retreats 4 | . 2 2 Traps | -11 -10 -10 ------- Run | Scr Mat Min Traps Triggered 3 | . 3 . Indirectly . | . . . Trap Hack Attempts . | . . . Triggered . | . . . Disarmed . | . . . Reprogrammed . | . . . Reused . | . . . Traps Extracted . | . . . Installed . | . . . Triggered . | . . . Machines | -11 -10 -10 ---------- Run | Scr Mat Min Machines Disabled . | . . . Max in Single Turn . | . . . Machines Sabotaged . | . . . Garrisons Compromised . | . . . Overloaded Fab Kills . | . . . Hacking | -11 -10 -10 --------- Run | Scr Mat Min Machines Accessed 5 | . 5 . Terminals 5 | . 5 . Fabricators . | . . . Repair Stations . | . . . Recycling Units . | . . . Scanalyzers . | . . . Garrison Access . | . . . Total Hacks 15 | . 15 . Successful 8 | . 8 . Failed 7 | . 7 . Catastrophic . | . . . Database Lockouts . | . . . Manual 13 | . 13 . Terminals 15 | . 15 . Fabricators . | . . . Repair Stations . | . . . Recycling Units . | . . . Scanalyzers . | . . . Garrison Access . | . . . Terminal Hacks 3 | . 3 . Record 1 | . 1 . Unreport Threat 2 | . 2 . Fabricator Hacks . | . . . Repair Station Hacks . | . . . Recycling Unit Hacks . | . . . Scanalyzer . | . . . Garrison Access Hacks . | . . . Unauthorized Hacks 5 | . 5 . Terminals 5 | . 5 . Botnet 5 | . 5 . Fabricators . | . . . Repair Stations . | . . . Recycling Units . | . . . Scanalyzers . | . . . Garrison Access . | . . . Data Cores Recovered . | . . . Used . | . . . Hacking Detections 5 | . 5 . Full Trace Events 1 | . 1 . Feedback Events . | . . . Feedback Blocked . | . . . Robot Schematics Acquired . | . . . Robots Built . | . . . Authchips . | . . . Time . | . . . Total Robot Build Rating . | . . . Part Schematics Acquired . | . . . Parts Built . | . . . Authchips . | . . . Time . | . . . Total Part Build Rating . | . . . Parts Repaired . | . . . Time . | . . . Parts Recycled . | . . . Recycled Matter . | . . . Retrieved Matter . | . . . Retrieved Components . | . . . Parts Scanalyzed . | . . . Part Schematics Acquired . | . . . Parts Damaged . | . . . Bothacking | -11 -10 -10 ------------ Run | Scr Mat Min Used RIF Installer . | . . . Robots Hacked . | . . . Non-combat . | . . . Combat . | . . . Robot Hacks Applied . | . . . Relay Couplers Released . | . . . Fabnet Peak Effective % . | . . . Robots Rewired . | . . . Allies Hacked . | . . . Hacks Repelled . | . . . Allies | -11 -10 -10 -------- Run | Scr Mat Min Total Allies . | . . . Largest Group . | . . . Highest-Rated Group . | . . . Highest-Rated Ally . | . . . Total Orders . | . . . Ally Attacks . | . . . Total Damage . | . . . Kills . | . . . Allies Corrupted . | . . . Allies Melted . | . . . Intel | -11 -10 -10 ------- Run | Scr Mat Min Robot Analysis Total . | . . . Derelict Logs Recovered 1 | . . 1 Drone Launches . | . . . Drone Recoveries . | . . . Exploration | -11 -10 -10 ------------- Run | Scr Mat Min Turns Passed 1780 | 85 1234 461 Spaces Moved 1347 | 65 935 347 Core 1 | 1 . . Treads . | . . . Legs . | . . . Wheels 1346 | 64 935 347 Hover . | . . . Flight . | . . . Fastest Speed 50 | 50 80 95 Average Speed 96 | 84 97 95 Slowest Speed 125 | 90 110 125 Overloaded Moves . | . . . Propulsion Burnouts . | . . . Robots Hopped . | . . . Cave-ins Triggered . | . . . Exploration Rate (%) 57 | 4 99 68 Regions Visited 2 Branch Regions 1 Pre-discovered Areas 1 | . . 1 Known Exits Taken . | . . . Unknown Exits Taken 2 | 1 1 . Scrap Searched 1 | . . 1 Spaces Dug . | . . . Terrain Destroyed . | . . . Melee . | . . . Projectile . | . . . AOE . | . . . Terrain Rammed . | . . . Walls Destroyed . | . . . Machines Disabled . | . . . Actions | -11 -10 -10 --------- Run | Scr Mat Min Total 1600 | 83 1103 414 Wait 69 | . 44 25 Move 1345 | 64 934 347 Hop . | . . . Pick Up 20 | 6 14 . Fast Attach 14 | 8 4 2 Attach 5 | . 2 3 Detach 1 | 1 . . Swap 11 | . 11 . Drop 18 | . 16 2 Fire 117 | 4 78 35 Melee . | . . . Ram . | . . . Kick . | . . . Crush . | . . . Escape Stasis . | . . . Rewire . | . . . Trap . | . . . Miscellaneous . | . . . Route ------- -11/Scrapyard -10/Materials (discovered 5 exits: [*Mat x3] / [*Min x2]) -10/Mines (discovered 2 exits: [*Mat] / [*Exi]) History --------- Turn | Location | Event 15 | -11/Scrapyard | Discovered new exit (range 16) 86 | -11/Scrapyard | Entered Materials 115 | -10/Materials | Discovered new exit (range 8) 308 | -10/Materials | Build established: Mutant 363 | -10/Materials | Discovered new exit (range 14) 543 | -10/Materials | Discovered new exit (range 18) 796 | -10/Materials | Discovered new exit (range 7) 1122 | -10/Materials | Discovered new exit (range 8) 1320 | -10/Materials | Entered Mines 1331 | -10/Mines | Learned location of Storage (-7) 1456 | -10/Mines | Deemed a non-threat by the Exiles lab entrance 1456 | -10/Mines | Discovered new exit (range 5) 1513 | -10/Mines | Core integrity fell below 50% 1590 | -10/Mines | Discovered new exit (range 4) 1638 | -10/Mines | Core integrity fell below 20% 1781 | -10/Mines | Destroyed by G-47 Trooper with Particle Gun Last Messages --------------- 01651_ Dropped Lgt. Nuclear Core. 01652_ Acquired Ion Engine. 01654_ Acquired 3 matter. 01685_ G-47 Trooper suffers critical hit (Destroy). 01685_ Destroyed Aluminum Leg. 01688_ G-47 Trooper destroyed. 01690_ Acquired 52 matter. 01747_ Searching scrap... 01747_ Found Weapon Shielding. 01747_ Found Lrg. Battery. 01747_ Found Sml. Matter Pod. 01747_ Found Ion Engine. 01747_ Found 18 Matter. 01765_ A derelict emerges from the shadows: "Quick, help me dispose of these Unaware!" 01769_ G-47 Trooper: "SECOND INTRUDER APPROACHING. ELIMINATE." 01770_ OW-V8C(g): "Mission, incomplete...*fzzt*" 01770_ OW-V8C(g) destroyed. 01777_ G-34 Mercenary destroyed. 01779_ Wheel destroyed. Map ----- +----------------------------------------------------+ | | | | | | | | | | | | | | | | | ???????????????????????????????????????????? | | ???????????????????????????????????????????? | | ???????????????????????????????????????????? | | ???????????????????????????????????????????? | | ???????????????????????????????????????????? | | ???????????????????????????????????????????? | | ???????????????????????????????????????????? | | ???????????????????????????????????????????? | | ???????????????????????????????????????????? | | ???????????????????????????????????????????? | | ???????????????????????????????????????????? | | ??????????????????????????????????#????????? | | ????????????????????????????????? #????????? | | ###?????????????????????####??? ?????????? | | ##???????????????????## ### ??????????? | | ##?????????????????## !g= ????????????? | | ##???????????????## *g% ??????????????? | | ##?###?????????## @#????????????????? | | ## ##???????## ##????????????????? | | #??###### #?????????????????? | | #??# #?????????????????? | | ##?# ##### #????????????????? | | #?# ###### #????????????????? | | #?# ### ##????????????????? | | #### ##?##### #?####?????????????????? | | #??### ##??????#!#??????????????????????? | | #?????####???????#%#??????????????????????? | | ####?????????????#*#??????????????????????? | | ######????????#!#??????????????????????? | | ##???????#!#??????????????????????? | | ###?????# #??????????????????????? | | ## ####### #??????????????????????? | | #### # ####???????????????????? | | #??# #???????????????????? | | #??## ???????????? | | #???# ## ???????? | | #???# #? ????????? | | #???# ##? ????????? | | ##???# ##??? ?????????? | | ##????# ##???? ### ?????????? | | ??????## ##????? #??# ?????????? | | ???????## ##???????#??? ?????????? | +----------------------------------------------------+ Best States ------------- Heat Dissipation 25 Energy Generation 14 Energy Capacity 250 Matter Stores 300 Matter Capacity 300 Sight Range 18 Terrain Scan Density 10 Evasion (%) 44 Item Schematics ----------------- None Robot Schematics ------------------ None Fabricated ------------ Nothing Alien Tech Used ----------------- None Achievements -------------- None Challenges ------------ None Game ------ Seed AssaultDisruptorGuard Manual? 0 Play Time 00:19:13 Cumulative 46.2 hours Start 2022.03.30 @ 13:13:39 End 2022.03.30 @ 13:31:16 Sessions 1 Manual Loads 0 Difficulty Rogue Special Mode None Game No. 78 Rogue 50 Adventurer 28 Explorer 0 Win Type - Total 0 Types 0/0/0/0/0/0/0/0/0 Lore% 21 Gallery% 27 Achievement% 30 Wizard Run 0 Options --------- ASCII 0 Keyboard 0 Movement Mouse Keybinds 0 Fullscreen 1 Font 24/Terminus Map View 84x54 Tactical HUD 1 Map Filters NONE Filters NONE Steam 1 RUN: d9f18c74-56fe-4de7-91ca-3b5d2c756579